fUST/lending_fUST_20250907
["ID","MTS","AMOUNT","RATE_DAILY","PERIOD"]
[384053750,1757247040103,-500.0,0.00013697,2]
[384053751,1757247040112,-549.36445742,0.00013697,2]
[384053752,1757247040122,-500.0,0.00013697,2]
[384053753,1757247040132,-500.0,0.00013697,2]
[384053754,1757247040142,-500.0,0.00013697,2]
[384053755,1757247040151,-500.0,0.00013697,2]
[384053756,1757247040160,-500.0,0.00013697,2]
[384053757,1757247040170,-227.70716193,0.00013697,2]
[384053758,1757247040179,-157.699,0.00013697,2]
[384053759,1757247040190,-480.0,0.00013698,2]
[384053760,1757247040200,-480.0,0.00013698,2]
[384053761,1757247040209,-480.0,0.00013698,2]
[384053762,1757247040219,-480.0,0.00013698,2]
[384053763,1757247040229,-480.0,0.00013698,2]
[384053764,1757247040239,-480.0,0.00013698,2]
[384053765,1757247040248,-480.0,0.00013698,2]
[384053766,1757247040258,-480.0,0.00013698,2]
[384053767,1757247040268,-151.0,0.00013698,2]
[384053768,1757247040278,-480.0,0.00013698,2]
[384053769,1757247040287,-480.0,0.00013698,2]
[384053770,1757247040297,-480.0,0.00013698,2]
[384053771,1757247040306,-616.55,0.00013698,2]
[384053772,1757247040315,-480.0,0.00013698,2]
[384053773,1757247040324,-480.0,0.00013698,2]
[384053774,1757247040334,-818.63,0.00013698,2]
[384053775,1757247040343,-680.05,0.00013698,2]
[384053776,1757247040352,-706.55,0.00013698,2]
[384053777,1757247040362,-480.0,0.00013698,2]
[384053778,1757247040371,-551.72,0.00013698,2]
[384053779,1757247040380,-480.0,0.00013698,2]
[384053780,1757247040390,-620.79,0.00013698,2]
[384053781,1757247040399,-711.11,0.00013698,2]
[384053782,1757247040409,-480.0,0.00013698,2]
[384053783,1757247040418,-293.37,0.00013698,2]
[384053784,1757247040427,-506.44,0.00013698,2]
[384053785,1757247040437,-480.0,0.00013698,2]
[384053786,1757247040445,-480.0,0.00013698,2]
[384053787,1757247040455,-582.92,0.00013698,2]
[384053788,1757247040464,-634.47,0.00013698,2]
[384053789,1757247040474,-480.0,0.00013698,2]
[384053790,1757247040483,-480.0,0.00013698,2]
[384053791,1757247040493,-480.0,0.00013698,2]
[384053792,1757247040503,-480.0,0.00013698,2]
[384053793,1757247040513,-480.0,0.00013698,2]
[384053794,1757247040523,-480.0,0.00013698,2]
[384053795,1757247040534,-480.0,0.00013698,2]
[384053796,1757247040544,-504.68,0.00013698,2]
[384053797,1757247040554,-480.0,0.00013698,2]
[384053798,1757247040566,-480.0,0.00013698,2]
[384053799,1757247040575,-151.0,0.00013698,2]
[384053800,1757247040586,-151.0,0.00013698,2]
[384053801,1757247040595,-151.0,0.00013698,2]
[384053802,1757247040605,-480.0,0.00013698,2]
[384053803,1757247040615,-480.0,0.00013698,2]
[384053804,1757247040624,-352.84596621,0.00013698,2]
[384058654,1757247616659,3355.6018616,0.00013158,2]
[384058681,1757247908099,151.0,0.00013012,2]
[384058682,1757247908742,199.98022517,0.00013012,2]
[384058683,1757247926486,200.0,0.00013698,10]
[384058684,1757247926967,200.0,0.00013698,10]
[384058691,1757248060944,500.0,0.00013053,2]
[384058692,1757248085593,500.0,0.00013053,2]
[384058693,1757248109054,500.0,0.00013053,2]
[384058696,1757248135069,500.0,0.00013053,2]
[384058697,1757248160247,500.0,0.00013053,2]
[384058698,1757248185505,500.0,0.00013053,2]
[384058699,1757248211259,500.0,0.00013053,2]
[384058727,1757248231908,-383.488,0.00013185,2]
[384058729,1757248231920,-116.512,0.00013185,2]
[384058731,1757248231930,-169.33814378,0.00013448,2]
[384058733,1757248231939,-147.4171869,0.00013499,2]
[384058740,1757248231986,-152.5828131,0.00013499,2]
[384058743,1757248231996,-300.0,0.00013499,2]
[384058745,1757248232005,-1200.0,0.00013499,2]
[384058747,1757248232014,-41484.92130786,0.000135,2]
[384058749,1757248232024,-168.0,0.00013548,2]
[384058751,1757248232034,-1000.0,0.00013561,2]
[384058753,1757248232043,-1000.0,0.00013561,2]
[384058755,1757248232053,-1000.0,0.00013561,2]
[384058757,1757248232063,-1000.0,0.00013561,2]
[384058759,1757248232073,-1000.0,0.00013561,2]
[384058762,1757248232083,-1000.0,0.00013561,2]
[384058766,1757248232092,-1000.0,0.00013561,2]
[384058768,1757248232102,-1000.0,0.00013561,2]
[384058771,1757248232111,-1000.0,0.00013561,2]
[384058772,1757248232121,-1000.0,0.00013561,2]
[384058775,1757248232131,-400.34077335,0.00013561,2]
[384058778,1757248232158,-599.65922665,0.00013561,2]
[384058780,1757248232168,-1000.0,0.00013561,2]
[384058782,1757248232178,-1000.0,0.00013561,2]
[384058784,1757248232188,-1000.0,0.00013561,2]
[384058786,1757248232199,-557.10272414,0.00013561,2]
[384058788,1757248232208,-500.0,0.00013597,2]
[384058789,1757248232217,-80.67430128,0.00013598,2]
[384058826,1757248237860,-4876.46353406,0.00013598,2]
[384058827,1757248237870,-22303.91017661,0.00013598,2]
[384058829,1757248237880,-500.0,0.00013599,2]
[384058831,1757248237890,-500.0,0.00013599,2]
[384058833,1757248237899,-500.0,0.00013599,2]
[384058834,1757248237909,-253.00795771,0.00013599,2]
[384058835,1757248237919,-198.0133408,0.00013599,2]
[384058836,1757248237929,-500.0,0.00013599,2]
[384058837,1757248237938,-295.95749443,0.00013599,2]
[384058838,1757248237948,-500.0,0.00013599,2]
[384058839,1757248237957,-500.0,0.00013599,2]
[384058840,1757248237967,-500.0,0.00013599,2]
[384058841,1757248237976,-500.0,0.00013599,2]
[384058842,1757248237987,-500.0,0.00013599,2]
[384058843,1757248237996,-510.98714801,0.00013599,2]
[384058844,1757248238006,-500.0,0.00013599,2]
[384058846,1757248238016,-500.0,0.00013599,2]
[384058847,1757248238026,-500.0,0.00013599,2]
[384058848,1757248238036,-500.0,0.00013599,2]
[384058849,1757248238046,-500.0,0.00013599,2]
[384058850,1757248238055,-500.0,0.00013599,2]
[384058851,1757248238066,-321.73707008,0.00013599,2]
[384058852,1757248238076,-448.74675028,0.000136,2]
[384058853,1757248238091,-18364.39383003,0.000136,2]
[384058854,1757248238102,-500.0,0.00013648,2]
[384058855,1757248238112,-168.0,0.00013652,2]
[384058856,1757248238122,-168.0,0.00013671,2]
[384058857,1757248238133,-846.64878038,0.0001368,2]
[384058858,1757248238143,-160.0,0.0001368,2]
[384058859,1757248238157,-160.0,0.0001368,2]
[384058860,1757248238167,-417.15472785,0.0001368,2]
[384058861,1757248238178,-233.01044003,0.0001368,2]
[384058862,1757248238188,-217.60587337,0.0001368,2]
[384058863,1757248238198,-203.24090201,0.0001368,2]
[384058864,1757248238208,-530.64473063,0.0001368,2]
[384058865,1757248238218,-160.0,0.00013689,2]
[384058866,1757248238228,-157.699,0.00013696,2]
[384058867,1757248238238,-168.30577417,0.00013698,2]
[384058868,1757248238248,-799.5824301,0.00013698,2]
[384058869,1757248238258,-17764.12118662,0.00013698,2]
[384058870,1757248238269,-358.33781358,0.00013698,2]
[384058898,1757248239971,-1291.66420404,0.00013462,2]
[384058900,1757248239980,-17477.08698001,0.00013698,2]
[384059197,1757248243104,-327.0214455,0.00013598,2]
[384059199,1757248243117,-607.59921339,0.00013598,2]
[384059427,1757248246203,-53.09184037,0.00013598,2]
[384059429,1757248246214,-7890.89830959,0.00013698,2]
[384059430,1757248246223,-480.0,0.00013698,2]
[384059432,1757248246233,-480.0,0.00013698,2]
[384059434,1757248246244,-552.13,0.00013698,2]
[384059436,1757248246254,-480.0,0.00013698,2]
[384059438,1757248246263,-480.0,0.00013698,2]
[384059439,1757248246272,-480.0,0.00013698,2]
[384059441,1757248246282,-480.0,0.00013698,2]
[384059443,1757248246291,-480.0,0.00013698,2]
[384059445,1757248246300,-480.0,0.00013698,2]
[384059447,1757248246310,-674.34,0.00013698,2]
[384059448,1757248246319,-151.0,0.00013698,2]
[384059450,1757248246328,-151.0,0.00013698,2]
[384059452,1757248246338,-675.8,0.00013698,2]
[384059454,1757248246347,-590.86,0.00013698,2]
[384059455,1757248246356,-480.0,0.00013698,2]
[384059457,1757248246365,-523.80806151,0.00013698,2]
[384059459,1757248246375,-539.5,0.00013698,2]
[384059461,1757248246384,-480.0,0.00013698,2]
[384059463,1757248246393,-480.0,0.00013698,2]
[384059464,1757248246402,-558.63,0.00013698,2]
[384059466,1757248246411,-808.56,0.00013698,2]
[384059468,1757248246421,-485.34,0.00013698,2]
[384059470,1757248246430,-480.0,0.00013698,2]
[384059471,1757248246441,-480.0,0.00013698,2]
[384059473,1757248246450,-193.58100535,0.00013698,2]
[384059475,1757248246459,-157.0,0.00013698,2]
[384059477,1757248246469,-483.65,0.00013698,2]
[384059479,1757248246479,-500.0,0.00013698,2]
[384059480,1757248246488,-157.0,0.00013698,2]
[384059482,1757248246497,-480.0,0.00013698,2]
[384059484,1757248246507,-480.0,0.00013698,2]
[384059486,1757248246516,-480.0,0.00013698,2]
[384059488,1757248246526,-480.0,0.00013698,2]
[384059489,1757248246535,-480.0,0.00013698,2]
[384059491,1757248246546,-480.0,0.00013698,2]
[384059493,1757248246555,-480.0,0.00013698,2]
[384059494,1757248246565,-480.0,0.00013698,2]
[384059495,1757248246574,-480.0,0.00013698,2]
[384059496,1757248246584,-480.0,0.00013698,2]
[384059497,1757248246593,-683.29,0.00013698,2]
[384059498,1757248246602,-480.0,0.00013698,2]
[384059499,1757248246612,-186.28,0.00013698,2]
[384059500,1757248246622,-527.05,0.00013698,2]
[384059501,1757248246631,-480.0,0.00013698,2]
[384059502,1757248246640,-480.0,0.00013698,2]
[384059503,1757248246650,-482.02299581,0.00013698,2]
[384059504,1757248246659,-831.39,0.00013698,2]
[384059505,1757248246668,-428.2459091,0.00013698,2]
[384063139,1757248609369,480.0,0.00024657,120]
[384063165,1757248818115,170.0,0.00013073,2]
[384063186,1757249025568,170.0,0.00013073,2]
[384063189,1757249075547,3622.27406486,0.00029039,60]
[384063230,1757249412793,8444.12431672,0.00013105,2]
[384063232,1757249418800,170.0,0.00013073,2]
[384063260,1757249432152,-170.0,0.00013338,2]
[384063263,1757249432162,-2105.41764886,0.00013355,2]
[384063266,1757249432171,-300.0,0.00013359,2]
[384063268,1757249432181,-226.34847704,0.00013359,2]
[384063270,1757249432192,-446.55424473,0.00013359,2]
[384063273,1757249432209,-527.09727823,0.00013359,2]
[384063276,1757249432219,-300.0,0.0001336,2]
[384063278,1757249432228,-300.0,0.0001336,2]
[384063280,1757249432238,-300.0,0.0001336,2]
[384063282,1757249432247,-133.74842396,0.00013361,2]
[384063284,1757249432259,-1066.25157604,0.00013361,2]
[384063286,1757249432269,-3792.90463247,0.00013363,2]
[384063289,1757249432279,-158.68322278,0.0001341,2]
[384063291,1757249432289,-170.0,0.00013473,2]
[384063293,1757249432299,-2017.55621211,0.0001349,2]
[384063295,1757249432309,-1460.35830636,0.00013497,2]
[384063296,1757249432319,-1460.35830633,0.00013522,2]
[384063297,1757249432329,-170.0,0.00013535,2]
[384063298,1757249432339,-170.0,0.00013539,2]
[384063299,1757249432349,-168.0,0.00013543,2]
[384063300,1757249432358,-1460.35830633,0.00013548,2]
[384063301,1757249432368,-1460.35830633,0.00013573,2]
[384063302,1757249432378,-1000.0,0.00013589,2]
[384063303,1757249432388,-1000.0,0.00013589,2]
[384063304,1757249432398,-1000.0,0.00013589,2]
[384063305,1757249432408,-151.0,0.00013589,2]
[384063306,1757249432418,-151.0,0.00013589,2]
[384063307,1757249432429,-963.21993475,0.00013589,2]
[384063308,1757249432439,-151.0,0.00013589,2]
[384063309,1757249432449,-151.0,0.00013589,2]
[384063310,1757249432459,-151.0,0.00013589,2]
[384063312,1757249432469,-151.0,0.00013589,2]
[384063313,1757249432479,-151.0,0.00013589,2]
[384063315,1757249432489,-151.0,0.00013589,2]
[384063317,1757249432499,-151.0,0.00013589,2]
[384063318,1757249432511,-151.0,0.00013589,2]
[384063320,1757249432520,-151.0,0.00013589,2]
[384063322,1757249432529,-151.0,0.00013589,2]
[384063324,1757249432539,-151.0,0.00013589,2]
[384063326,1757249432549,-152.24547723,0.00013589,2]
[384063327,1757249432558,-151.0,0.00013589,2]
[384063329,1757249432568,-151.0,0.00013589,2]
[384063331,1757249432578,-250.0,0.00013589,2]
[384063333,1757249432587,-151.0,0.00013589,2]
[384063335,1757249432597,-250.0,0.00013589,2]
[384063337,1757249432606,-318.72977302,0.00013589,2]
[384063340,1757249432616,-151.0,0.00013589,2]
[384063341,1757249432626,-250.0,0.00013589,2]
[384063343,1757249432635,-151.0,0.00013589,2]
[384063345,1757249432645,-250.0,0.00013589,2]
[384063347,1757249432654,-151.0,0.00013589,2]
[384063349,1757249432664,-250.0,0.00013589,2]
[384063351,1757249432674,-151.0,0.00013589,2]
[384063353,1757249432683,-250.0,0.00013589,2]
[384063355,1757249432693,-250.0,0.00013589,2]
[384063357,1757249432702,-250.0,0.00013589,2]
[384063359,1757249432711,-250.0,0.00013589,2]
[384063361,1757249432721,-250.0,0.00013589,2]
[384063363,1757249432730,-250.0,0.00013589,2]
[384063365,1757249432739,-295.13648197,0.00013589,2]
[384063367,1757249432748,-189.52,0.00013597,2]
[384063369,1757249432759,-500.0,0.00013597,2]
[384063371,1757249432769,-500.0,0.00013597,2]
[384063373,1757249432778,-500.0,0.00013597,2]
[384063375,1757249432788,-500.0,0.00013597,2]
[384063377,1757249432797,-500.0,0.00013597,2]
[384063379,1757249432806,-500.0,0.00013597,2]
[384063381,1757249432816,-500.0,0.00013597,2]
[384063383,1757249432825,-500.0,0.00013597,2]
[384063385,1757249432834,-500.0,0.00013597,2]
[384063387,1757249432844,-500.0,0.00013597,2]
[384063389,1757249432853,-500.0,0.00013597,2]
[384063391,1757249432862,-500.0,0.00013597,2]
[384063393,1757249432871,-500.0,0.00013597,2]
[384063395,1757249432881,-500.0,0.00013597,2]
[384063397,1757249432890,-500.0,0.00013597,2]
[384063399,1757249432903,-500.0,0.00013597,2]
[384063401,1757249432913,-500.0,0.00013597,2]
[384063403,1757249432922,-203.14401694,0.00013597,2]
[384063404,1757249432932,-500.0,0.00013597,2]
[384063406,1757249432944,-500.0,0.00013597,2]
[384063408,1757249432954,-500.0,0.00013597,2]
[384063410,1757249432963,-500.0,0.00013597,2]
[384063412,1757249432974,-500.0,0.00013597,2]
[384063414,1757249432984,-397.27532371,0.00013597,2]
[384063416,1757249432993,-500.0,0.00013597,2]
[384063418,1757249433002,-500.0,0.00013597,2]
[384063420,1757249433011,-500.0,0.00013597,2]
[384063422,1757249433021,-248.93583839,0.00013597,2]
[384063424,1757249433031,-265.98333266,0.00013597,2]
[384063426,1757249433042,-500.0,0.00013597,2]
[384063428,1757249433054,-500.0,0.00013597,2]
[384063430,1757249433064,-594.78170067,0.00013597,2]
[384063432,1757249433074,-500.0,0.00013597,2]
[384063434,1757249433083,-500.0,0.00013597,2]
[384063436,1757249433093,-500.0,0.00013597,2]
[384063438,1757249433103,-500.0,0.00013597,2]
[384063440,1757249433112,-500.0,0.00013597,2]
[384063451,1757249433232,-500.0,0.00013597,2]
[384063453,1757249433242,-500.0,0.00013597,2]
[384063455,1757249433252,-500.0,0.00013597,2]
[384063457,1757249433263,-500.0,0.00013597,2]
[384063458,1757249433273,-500.0,0.00013597,2]
[384063460,1757249433283,-500.0,0.00013597,2]
[384063462,1757249433292,-500.0,0.00013597,2]
[384063464,1757249433302,-500.0,0.00013597,2]
[384063466,1757249433312,-500.0,0.00013597,2]
[384063468,1757249433322,-500.0,0.00013597,2]
[384063470,1757249433332,-500.0,0.00013597,2]
[384063472,1757249433342,-500.0,0.00013597,2]
[384063474,1757249433351,-174.70647017,0.00013597,2]
[384063476,1757249433361,-500.0,0.00013597,2]
[384063478,1757249433371,-428.96976013,0.00013597,2]
[384063480,1757249433381,-500.0,0.00013597,2]
[384063481,1757249433391,-500.0,0.00013597,2]
[384063483,1757249433401,-500.0,0.00013597,2]
[384063485,1757249433410,-500.0,0.00013597,2]
[384063487,1757249433420,-500.0,0.00013597,2]
[384063489,1757249433430,-500.0,0.00013597,2]
[384063491,1757249433440,-500.0,0.00013597,2]
[384063493,1757249433450,-500.0,0.00013597,2]
[384063495,1757249433460,-500.0,0.00013597,2]
[384063497,1757249433470,-500.0,0.00013597,2]
[384063499,1757249433480,-500.0,0.00013597,2]
[384063501,1757249433492,-500.0,0.00013597,2]
[384063503,1757249433502,-500.0,0.00013597,2]
[384063505,1757249433512,-500.0,0.00013597,2]
[384063507,1757249433522,-500.0,0.00013597,2]
[384063509,1757249433533,-500.0,0.00013597,2]
[384063510,1757249433543,-500.0,0.00013597,2]
[384063512,1757249433553,-500.0,0.00013597,2]
[384063514,1757249433563,-500.0,0.00013597,2]
[384063516,1757249433573,-500.0,0.00013597,2]
[384063518,1757249433583,-151.0,0.00013598,2]
[384063520,1757249433594,-151.0,0.00013598,2]
[384063522,1757249433603,-151.0,0.00013598,2]
[384063524,1757249433614,-151.0,0.00013598,2]
[384063526,1757249433625,-151.0,0.00013598,2]
[384063528,1757249433634,-151.0,0.00013598,2]
[384063530,1757249433644,-151.0,0.00013598,2]
[384063532,1757249433654,-151.0,0.00013598,2]
[384063534,1757249433663,-151.0,0.00013598,2]
[384063536,1757249433673,-151.0,0.00013598,2]
[384063538,1757249433683,-151.0,0.00013598,2]
[384063540,1757249433692,-151.0,0.00013598,2]
[384063542,1757249433702,-151.0,0.00013598,2]
[384063543,1757249433712,-151.0,0.00013598,2]
[384063545,1757249433721,-151.0,0.00013598,2]
[384063547,1757249433733,-151.0,0.00013598,2]
[384063549,1757249433743,-151.0,0.00013598,2]
[384063551,1757249433753,-282.996272,0.00013598,2]
[384063553,1757249433762,-151.0,0.00013598,2]
[384063555,1757249433773,-237.151202,0.00013598,2]
[384063557,1757249433782,-151.0,0.00013598,2]
[384063559,1757249433791,-151.0,0.00013598,2]
[384063561,1757249433801,-151.0,0.00013598,2]
[384063563,1757249433811,-151.0,0.00013598,2]
[384063565,1757249433820,-166.262952,0.00013598,2]
[384063566,1757249433829,-166.262952,0.00013598,2]
[384063568,1757249433839,-166.262952,0.00013598,2]
[384063570,1757249433849,-166.262952,0.00013598,2]
[384063572,1757249433859,-151.0,0.00013598,2]
[384063574,1757249433869,-159.694758,0.00013598,2]
[384063576,1757249433879,-151.0,0.00013598,2]
[384063578,1757249433888,-159.694758,0.00013598,2]
[384063580,1757249433899,-159.694758,0.00013598,2]
[384063582,1757249433909,-159.694758,0.00013598,2]
[384063584,1757249433919,-151.0,0.00013598,2]
[384063586,1757249433930,-151.0,0.00013598,2]
[384063588,1757249433941,-151.0,0.00013598,2]
[384063590,1757249433952,-151.0,0.00013598,2]
[384063592,1757249433965,-1460.35830633,0.00013598,2]
[384063594,1757249433983,-151.0,0.00013598,2]
[384063596,1757249434001,-151.0,0.00013598,2]
[384063598,1757249434011,-151.616354,0.00013598,2]
[384063600,1757249434021,-151.0,0.00013598,2]
[384063602,1757249434032,-151.0,0.00013598,2]
[384063604,1757249434042,-151.0,0.00013598,2]
[384063606,1757249434052,-658.4749995,0.00013598,2]
[384063608,1757249434062,-151.0,0.00013598,2]
[384063610,1757249434071,-14231.72230411,0.00013598,2]
[384063613,1757249434093,-374.10780233,0.00013598,2]
[384063763,1757249438057,-151.0,0.00013598,2]
[384063764,1757249438067,-386.381596,0.00013598,2]
[384063765,1757249438077,-386.381596,0.00013598,2]
[384063766,1757249438086,-54999.42607705,0.00013598,2]
[384063767,1757249438095,-500.0,0.00013599,2]
[384063768,1757249438105,-170.0,0.00013623,2]
[384063769,1757249438115,-500.0,0.00013673,2]
[384063770,1757249438124,-590.45919396,0.00013673,2]
[384063771,1757249438134,-500.0,0.00013673,2]
[384063772,1757249438144,-298.19620065,0.00013673,2]
[384063773,1757249438154,-500.0,0.00013673,2]
[384063774,1757249438164,-500.0,0.00013673,2]
[384063775,1757249438173,-263.13513426,0.00013673,2]
[384063776,1757249438183,-500.0,0.00013673,2]
[384063777,1757249438192,-500.0,0.00013673,2]
[384063778,1757249438202,-568.06839333,0.00013673,2]
[384063779,1757249438211,-500.0,0.00013673,2]
[384063780,1757249438221,-500.0,0.00013673,2]
[384063781,1757249438230,-504.33984407,0.00013673,2]
[384063782,1757249438239,-500.0,0.00013673,2]
[384063783,1757249438249,-500.0,0.00013673,2]
[384063784,1757249438258,-500.0,0.00013673,2]
[384063785,1757249438268,-500.0,0.00013673,2]
[384063786,1757249438277,-500.0,0.00013673,2]
[384063787,1757249438287,-507.0775955,0.00013673,2]
[384063788,1757249438296,-500.0,0.00013673,2]
[384063789,1757249438306,-500.0,0.00013673,2]
[384063790,1757249438315,-500.0,0.00013673,2]
[384063791,1757249438324,-500.0,0.00013673,2]
[384063792,1757249438334,-500.0,0.00013673,2]
[384063793,1757249438344,-500.0,0.00013673,2]
[384063794,1757249438353,-160.0,0.00013677,2]
[384063795,1757249438363,-160.0,0.00013677,2]
[384063796,1757249438373,-417.15472785,0.00013677,2]
[384063797,1757249438383,-160.0,0.00013677,2]
[384063798,1757249438392,-217.60587337,0.00013677,2]
[384063799,1757249438402,-233.01044003,0.00013677,2]
[384063800,1757249438412,-203.24090201,0.00013677,2]
[384063801,1757249438422,-530.64473063,0.00013677,2]
[384063802,1757249438431,-846.64878038,0.00013677,2]
[384063803,1757249438441,-160.0,0.00013677,2]
[384063804,1757249438450,-225.42702557,0.0001369,2]
[384063805,1757249438460,-157.699,0.00013697,2]
[384063806,1757249438469,-500.0,0.00013698,2]
[384063807,1757249438479,-11142.98983344,0.00013698,2]
[384063808,1757249438492,-2812.45109286,0.00013698,2]
[384063809,1757249438502,-5430.548983,0.00013698,2]
[384063810,1757249438511,-480.0,0.00013698,2]
[384063811,1757249438521,-480.0,0.00013698,2]
[384063812,1757249438531,-480.0,0.00013698,2]
[384063813,1757249438540,-168.30577417,0.00013698,2]
[384063814,1757249438550,-500.0,0.00013698,2]
[384063815,1757249438559,-480.0,0.00013698,2]
[384063816,1757249438569,-480.0,0.00013698,2]
[384063817,1757249438579,-480.0,0.00013698,2]
[384063818,1757249438588,-480.0,0.00013698,2]
[384063819,1757249438598,-480.0,0.00013698,2]
[384063820,1757249438607,-151.0,0.00013698,2]
[384063821,1757249438616,-480.0,0.00013698,2]
[384063822,1757249438626,-480.0,0.00013698,2]
[384063823,1757249438635,-481.94988044,0.00013698,2]
[384063824,1757249438646,-483.24849934,0.00013698,2]
[384063825,1757249438656,-482.06897968,0.00013698,2]
[384063826,1757249438665,-528.65,0.00013698,2]
[384063827,1757249438676,-481.13114138,0.00013698,2]
[384063828,1757249438686,-480.0,0.00013698,2]
[384063829,1757249438694,-480.0,0.00013698,2]
[384063830,1757249438704,-500.0,0.00013698,2]
[384063831,1757249438715,-484.31541666,0.00013698,2]
[384063832,1757249438724,-905.71,0.00013698,2]
[384063833,1757249438734,-480.0,0.00013698,2]
[384063834,1757249438744,-151.0,0.00013698,2]
[384063835,1757249438753,-480.0,0.00013698,2]
[384063836,1757249438764,-480.0,0.00013698,2]
[384063837,1757249438773,-480.0,0.00013698,2]
[384063838,1757249438783,-481.40265521,0.00013698,2]
[384063839,1757249438792,-480.0,0.00013698,2]
[384063840,1757249438802,-3593.69311453,0.00013698,2]
[384063841,1757249438821,-20329.74809377,0.00013698,2]
[384063842,1757249438831,-586.24,0.00013698,2]
[384063843,1757249438840,-480.0,0.00013698,2]
[384063844,1757249438849,-480.0,0.00013698,2]
[384063845,1757249438858,-480.0,0.00013698,2]
[384063846,1757249438867,-480.0,0.00013698,2]
[384063847,1757249438878,-153.613903,0.00013698,2]
[384063848,1757249438887,-480.0,0.00013698,2]
[384063849,1757249438900,-482.67920354,0.00013698,2]
[384063850,1757249438914,-480.0,0.00013698,2]
[384063851,1757249438923,-603.39822757,0.00013698,2]
[384063852,1757249438933,-480.0,0.00013698,2]
[384063853,1757249438943,-480.0,0.00013698,2]
[384063854,1757249438953,-480.0,0.00013698,2]
[384063855,1757249438963,-480.0,0.00013698,2]
[384063856,1757249438972,-480.0,0.00013698,2]
[384063857,1757249438981,-480.0,0.00013698,2]
[384063858,1757249438992,-500.0,0.00013698,2]
[384063859,1757249439002,-500.0,0.00013698,2]
[384063860,1757249439011,-500.0,0.00013698,2]
[384063861,1757249439020,-500.0,0.00013698,2]
[384063862,1757249439030,-501.6316782,0.00013698,2]
[384063863,1757249439040,-480.0,0.00013698,2]
[384063864,1757249439049,-480.0,0.00013698,2]
[384063865,1757249439058,-480.0,0.00013698,2]
[384063866,1757249439068,-480.0,0.00013698,2]
[384063867,1757249439077,-480.0,0.00013698,2]
[384063868,1757249439087,-480.0,0.00013698,2]
[384063869,1757249439096,-480.0,0.00013698,2]
[384063870,1757249439105,-480.0,0.00013698,2]
[384063871,1757249439115,-480.0,0.00013698,2]
[384063872,1757249439125,-651.71,0.00013698,2]
[384063873,1757249439134,-480.0,0.00013698,2]
[384063874,1757249439144,-480.0,0.00013698,2]
[384063875,1757249439153,-480.0,0.00013698,2]
[384063876,1757249439163,-480.0,0.00013698,2]
[384063877,1757249439174,-480.0,0.00013698,2]
[384063878,1757249439183,-611.70053833,0.00013698,2]
[384063879,1757249439194,-480.0,0.00013698,2]
[384063880,1757249439204,-480.0,0.00013698,2]
[384063881,1757249439214,-548.74,0.00013698,2]
[384063882,1757249439223,-151.0,0.00013698,2]
[384063883,1757249439233,-151.0,0.00013698,2]
[384063884,1757249439242,-235.889635,0.00013698,2]
[384063885,1757249439252,-480.0,0.00013698,2]